fUST/lending_fUST_20250705
["ID","MTS","AMOUNT","RATE_DAILY","PERIOD"]
[369729276,1751716255858,-460.0,0.00019452,2]
[369729277,1751716255867,-460.0,0.00019452,2]
[369729278,1751716255877,-460.0,0.00019452,2]
[369729279,1751716255887,-460.0,0.00019452,2]
[369729280,1751716255897,-460.0,0.00019452,2]
[369729281,1751716255907,-460.0,0.00019452,2]
[369729282,1751716255916,-460.0,0.00019452,2]
[369729283,1751716255926,-460.0,0.00019452,2]
[369729284,1751716255935,-5726.62,0.00019452,2]
[369729285,1751716255945,-310.43988614,0.00019452,2]
[369729286,1751716255954,-460.0,0.00019452,2]
[369729287,1751716255964,-980.52,0.00019452,2]
[369729288,1751716255973,-460.0,0.00019452,2]
[369729289,1751716255982,-460.0,0.00019452,2]
[369729290,1751716255992,-460.0,0.00019452,2]
[369729291,1751716256001,-460.0,0.00019452,2]
[369729292,1751716256011,-460.0,0.00019452,2]
[369729293,1751716256021,-460.0,0.00019452,2]
[369729294,1751716256031,-460.0,0.00019452,2]
[369729295,1751716256040,-460.0,0.00019452,2]
[369729296,1751716256050,-460.0,0.00019452,2]
[369729297,1751716256059,-385.16064482,0.00019452,2]
[369729298,1751716256069,-460.0,0.00019452,2]
[369729299,1751716256078,-460.0,0.00019452,2]
[369729300,1751716256087,-460.0,0.00019452,2]
[369729301,1751716256096,-332.39140822,0.00019452,2]
[369729302,1751716256106,-460.0,0.00019452,2]
[369729303,1751716256115,-460.0,0.00019452,2]
[369729304,1751716256125,-460.0,0.00019452,2]
[369729305,1751716256135,-460.0,0.00019452,2]
[369729306,1751716256145,-460.0,0.00019452,2]
[369729307,1751716256155,-460.0,0.00019452,2]
[369729308,1751716256165,-460.0,0.00019452,2]
[369729309,1751716256174,-460.0,0.00019452,2]
[369729310,1751716256183,-460.0,0.00019452,2]
[369729311,1751716256192,-460.0,0.00019452,2]
[369729312,1751716256202,-460.0,0.00019452,2]
[369729313,1751716256211,-460.0,0.00019452,2]
[369729314,1751716256221,-460.0,0.00019452,2]
[369729315,1751716256231,-460.0,0.00019452,2]
[369729316,1751716256240,-460.0,0.00019452,2]
[369729317,1751716256250,-460.0,0.00019452,2]
[369729318,1751716256259,-460.0,0.00019452,2]
[369729319,1751716256269,-460.0,0.00019452,2]
[369729320,1751716256278,-460.0,0.00019452,2]
[369729322,1751716256287,-460.0,0.00019452,2]
[369729324,1751716256296,-944.11,0.00019452,2]
[369729326,1751716256306,-534.47335338,0.00019452,2]
[369729328,1751716256315,-460.0,0.00019452,2]
[369729329,1751716256325,-1412.58,0.00019452,2]
[369729331,1751716256336,-460.0,0.00019452,2]
[369729332,1751716256345,-460.0,0.00019452,2]
[369729333,1751716256355,-460.0,0.00019452,2]
[369729334,1751716256364,-460.0,0.00019452,2]
[369729335,1751716256374,-460.0,0.00019452,2]
[369729336,1751716256383,-460.0,0.00019452,2]
[369729337,1751716256393,-460.0,0.00019452,2]
[369729338,1751716256402,-460.0,0.00019452,2]
[369729339,1751716256412,-460.0,0.00019452,2]
[369729340,1751716256423,-460.0,0.00019452,2]
[369729341,1751716256433,-460.0,0.00019452,2]
[369729342,1751716256443,-460.0,0.00019452,2]
[369729343,1751716256453,-460.0,0.00019452,2]
[369729344,1751716256462,-460.0,0.00019452,2]
[369729345,1751716256472,-1961.35,0.00019452,2]
[369729346,1751716256482,-460.0,0.00019452,2]
[369729347,1751716256492,-460.0,0.00019452,2]
[369729348,1751716256501,-460.0,0.00019452,2]
[369729349,1751716256512,-460.0,0.00019452,2]
[369729350,1751716256521,-460.0,0.00019452,2]
[369729351,1751716256530,-460.0,0.00019452,2]
[369729352,1751716256539,-460.0,0.00019452,2]
[369729353,1751716256548,-460.0,0.00019452,2]
[369729354,1751716256558,-460.0,0.00019452,2]
[369729355,1751716256567,-460.0,0.00019452,2]
[369729356,1751716256577,-460.0,0.00019452,2]
[369729357,1751716256586,-460.0,0.00019452,2]
[369729358,1751716256595,-460.0,0.00019452,2]
[369729359,1751716256605,-460.0,0.00019452,2]
[369729360,1751716256616,-460.0,0.00019452,2]
[369729361,1751716256625,-460.0,0.00019452,2]
[369729362,1751716256635,-460.0,0.00019452,2]
[369729363,1751716256644,-300.0,0.00019452,2]
[369729364,1751716256653,-3391.17,0.00019452,2]
[369729365,1751716256664,-4108.2,0.00019452,2]
[369729366,1751716256673,-460.0,0.00019452,2]
[369729367,1751716256683,-460.0,0.00019452,2]
[369729368,1751716256692,-732.65,0.00019452,2]
[369729369,1751716256701,-1000.0,0.00019452,2]
[369729370,1751716256711,-460.0,0.00019452,2]
[369729371,1751716256723,-460.0,0.00019452,2]
[369729372,1751716256732,-460.0,0.00019452,2]
[369729373,1751716256741,-1421.32,0.00019452,2]
[369729374,1751716256751,-460.0,0.00019452,2]
[369729375,1751716256761,-460.0,0.00019452,2]
[369729376,1751716256770,-460.0,0.00019452,2]
[369729377,1751716256780,-460.0,0.00019452,2]
[369729378,1751716256789,-460.0,0.00019452,2]
[369729379,1751716256799,-460.0,0.00019452,2]
[369729380,1751716256809,-460.0,0.00019452,2]
[369729381,1751716256819,-460.0,0.00019452,2]
[369729382,1751716256829,-599.44,0.00019452,2]
[369729383,1751716256839,-460.70806726,0.00019452,2]
[369729384,1751716256849,-460.0,0.00019452,2]
[369729385,1751716256859,-360.11951596,0.00019452,2]
[369729386,1751716256869,-460.0,0.00019452,2]
[369729387,1751716256879,-460.0,0.00019452,2]
[369729388,1751716256888,-406.46373021,0.00019452,2]
[369729389,1751716256897,-460.0,0.00019452,2]
[369729390,1751716256906,-460.0,0.00019452,2]
[369729391,1751716256917,-460.0,0.00019452,2]
[369729392,1751716256926,-460.0,0.00019452,2]
[369729393,1751716256936,-460.0,0.00019452,2]
[369729394,1751716256945,-460.0,0.00019452,2]
[369729395,1751716256954,-193.38674981,0.00019452,2]
[369729396,1751716256963,-181.96602155,0.00019452,2]
[369729397,1751716256973,-460.0,0.00019452,2]
[369729398,1751716256982,-460.0,0.00019452,2]
[369729399,1751716256992,-460.0,0.00019452,2]
[369729400,1751716257001,-460.0,0.00019452,2]
[369729401,1751716257010,-460.0,0.00019452,2]
[369729402,1751716257020,-849.19,0.00019452,2]
[369729403,1751716257029,-460.0,0.00019452,2]
[369729404,1751716257040,-500.92810676,0.00019452,2]
[369729405,1751716257051,-460.0,0.00019452,2]
[369729406,1751716257061,-495.69,0.00019452,2]
[369729407,1751716257071,-683.58,0.00019452,2]
[369729408,1751716257080,-2763.832786,0.00019452,2]
[369729409,1751716257090,-460.0,0.00019452,2]
[369729410,1751716257099,-460.0,0.00019452,2]
[369729411,1751716257109,-460.54609352,0.00019452,2]
[369729412,1751716257119,-460.0,0.00019452,2]
[369729413,1751716257128,-460.0,0.00019452,2]
[369729414,1751716257137,-460.0,0.00019452,2]
[369729415,1751716257146,-460.0,0.00019452,2]
[369729416,1751716257156,-460.0,0.00019452,2]
[369729417,1751716257165,-2763.832787,0.00019452,2]
[369729418,1751716257174,-460.0,0.00019452,2]
[369729419,1751716257182,-462.67159634,0.00019452,2]
[369729420,1751716257191,-460.0,0.00019452,2]
[369729421,1751716257201,-460.0,0.00019452,2]
[369729422,1751716257210,-460.0,0.00019452,2]
[369729423,1751716257219,-460.0,0.00019452,2]
[369729424,1751716257319,-684.37,0.00019452,2]
[369729425,1751716257331,-460.0,0.00019452,2]
[369729426,1751716257341,-460.0,0.00019452,2]
[369729427,1751716257350,-460.0,0.00019452,2]
[369729428,1751716257358,-460.0,0.00019452,2]
[369729429,1751716257368,-460.0,0.00019452,2]
[369729430,1751716257377,-460.0,0.00019452,2]
[369729431,1751716257386,-460.0,0.00019452,2]
[369729432,1751716257395,-460.0,0.00019452,2]
[369729433,1751716257406,-460.0,0.00019452,2]
[369729434,1751716257415,-460.0,0.00019452,2]
[369729435,1751716257425,-460.0,0.00019452,2]
[369729436,1751716257434,-166.95031682,0.00019452,2]
[369729437,1751716257444,-245.550436,0.00019452,2]
[369729438,1751716257454,-460.0,0.00019452,2]
[369729439,1751716257464,-460.0,0.00019452,2]
[369729440,1751716257473,-460.0,0.00019452,2]
[369729441,1751716257484,-460.0,0.00019452,2]
[369729442,1751716257493,-601.97,0.00019452,2]
[369729443,1751716257503,-460.0,0.00019452,2]
[369729444,1751716257512,-460.0,0.00019452,2]
[369729445,1751716257522,-460.0,0.00019452,2]
[369729446,1751716257531,-245.550432,0.00019452,2]
[369729447,1751716257540,-460.0,0.00019452,2]
[369729448,1751716257550,-460.0,0.00019452,2]
[369729449,1751716257560,-1260.38,0.00019452,2]
[369729450,1751716257570,-1381.61,0.00019452,2]
[369729451,1751716257579,-460.0,0.00019452,2]
[369729452,1751716257589,-460.0,0.00019452,2]
[369729453,1751716257599,-460.0,0.00019452,2]
[369729454,1751716257608,-2300.14,0.00019452,2]
[369729455,1751716257617,-460.0,0.00019452,2]
[369729456,1751716257627,-460.0,0.00019452,2]
[369729457,1751716257637,-460.0,0.00019452,2]
[369729458,1751716257647,-2636.08,0.00019452,2]
[369729459,1751716257656,-460.0,0.00019452,2]
[369729460,1751716257665,-954.6,0.00019452,2]
[369729461,1751716257675,-460.0,0.00019452,2]
[369729462,1751716257684,-460.0,0.00019452,2]
[369729463,1751716257696,-460.0,0.00019452,2]
[369729464,1751716257705,-460.0,0.00019452,2]
[369729465,1751716257715,-460.0,0.00019452,2]
[369729466,1751716257724,-2273.45,0.00019452,2]
[369729467,1751716257734,-460.0,0.00019452,2]
[369729468,1751716257743,-586.18856715,0.00019452,2]
[369729469,1751716257752,-460.0,0.00019452,2]
[369729470,1751716257761,-650.68,0.00019452,2]
[369729471,1751716257770,-647.018598,0.00019452,2]
[369729472,1751716257780,-460.0,0.00019452,2]
[369729473,1751716257789,-647.018598,0.00019452,2]
[369729474,1751716257799,-647.018598,0.00019452,2]
[369729475,1751716257808,-460.0,0.00019452,2]
[369729476,1751716257817,-460.0,0.00019452,2]
[369729477,1751716257827,-647.018598,0.00019452,2]
[369729478,1751716257836,-647.018598,0.00019452,2]
[369729479,1751716257845,-647.018598,0.00019452,2]
[369729480,1751716257854,-460.0,0.00019452,2]
[369729481,1751716257863,-647.018598,0.00019452,2]
[369729482,1751716257873,-647.018588,0.00019452,2]
[369729483,1751716257882,-460.0,0.00019452,2]
[369729484,1751716257891,-460.0,0.00019452,2]
[369729485,1751716257900,-460.0,0.00019452,2]
[369729486,1751716257910,-460.0,0.00019452,2]
[369729487,1751716257919,-460.0,0.00019452,2]
[369729488,1751716257929,-460.0,0.00019452,2]
[369729489,1751716257938,-352.29513,0.00019452,2]
[369729490,1751716257947,-460.0,0.00019452,2]
[369729491,1751716257969,-4788.01,0.00019452,2]
[369729492,1751716257985,-461.57756797,0.00019452,2]
[369729493,1751716258006,-460.0,0.00019452,2]
[369729494,1751716258025,-460.0,0.00019452,2]
[369729495,1751716258044,-460.0,0.00019452,2]
[369729496,1751716258062,-352.29512,0.00019452,2]
[369729497,1751716258082,-460.0,0.00019452,2]
[369729498,1751716258096,-460.0,0.00019452,2]
[369729499,1751716258112,-460.0,0.00019452,2]
[369729500,1751716258130,-460.0,0.00019452,2]
[369729501,1751716258150,-460.0,0.00019452,2]
[369729502,1751716258163,-460.0,0.00019452,2]
[369729503,1751716258178,-3046.35,0.00019452,2]
[369729504,1751716258195,-460.0,0.00019452,2]
[369729505,1751716258210,-460.0,0.00019452,2]
[369729506,1751716258225,-460.0,0.00019452,2]
[369729507,1751716258241,-460.0,0.00019452,2]
[369729508,1751716258257,-466.69,0.00019452,2]
[369729509,1751716258271,-460.0,0.00019452,2]
[369729510,1751716258285,-460.0,0.00019452,2]
[369729511,1751716258300,-460.0,0.00019452,2]
[369729512,1751716258315,-517.98,0.00019452,2]
[369729513,1751716258330,-460.0,0.00019452,2]
[369729514,1751716258346,-460.0,0.00019452,2]
[369729515,1751716258361,-460.0,0.00019452,2]
[369729516,1751716258376,-852.78,0.00019452,2]
[369729517,1751716258391,-460.0,0.00019452,2]
[369729518,1751716258405,-460.0,0.00019452,2]
[369729519,1751716258419,-460.0,0.00019452,2]
[369729520,1751716258435,-460.0,0.00019452,2]
[369729521,1751716258449,-460.0,0.00019452,2]
[369729522,1751716258463,-460.0,0.00019452,2]
[369729523,1751716258479,-460.0,0.00019452,2]
[369729524,1751716258495,-460.0,0.00019452,2]
[369729525,1751716258509,-460.0,0.00019452,2]
[369729526,1751716258523,-460.0,0.00019452,2]
[369729527,1751716258538,-460.0,0.00019452,2]
[369729528,1751716258552,-460.0,0.00019452,2]
[369729529,1751716258566,-692.82,0.00019452,2]
[369729530,1751716258581,-536.33,0.00019452,2]
[369729531,1751716258595,-460.0,0.00019452,2]
[369729532,1751716258610,-460.0,0.00019452,2]
[369729533,1751716258625,-321.522453,0.00019452,2]
[369729534,1751716258641,-468.57,0.00019452,2]
[369729535,1751716258656,-460.0,0.00019452,2]
[369729536,1751716258671,-460.0,0.00019452,2]
[369729537,1751716258684,-460.0,0.00019452,2]
[369729538,1751716258703,-229.42541191,0.00019452,2]
[369729539,1751716258718,-460.0,0.00019452,2]
[369729540,1751716258732,-460.0,0.00019452,2]
[369729541,1751716258747,-460.0,0.00019452,2]
[369729542,1751716258762,-460.0,0.00019452,2]
[369729543,1751716258776,-547.80914112,0.00019452,2]
[369729544,1751716258797,-2133.69,0.00019452,2]
[369729545,1751716258811,-460.0,0.00019452,2]
[369729546,1751716258826,-460.0,0.00019452,2]
[369729547,1751716258841,-460.0,0.00019452,2]
[369729548,1751716258856,-460.0,0.00019452,2]
[369729549,1751716258870,-460.0,0.00019452,2]
[369729550,1751716258885,-460.0,0.00019452,2]
[369729551,1751716258899,-460.0,0.00019452,2]
[369729552,1751716258913,-605.31340702,0.00019452,2]
[369729553,1751716258929,-460.0,0.00019452,2]
[369729554,1751716258944,-460.0,0.00019452,2]
[369729555,1751716258958,-460.0,0.00019452,2]
[369729556,1751716258973,-460.0,0.00019452,2]
[369729557,1751716258988,-460.0,0.00019452,2]
[369729558,1751716259003,-460.0,0.00019452,2]
[369729559,1751716259154,-253.11425003,0.00019452,2]
[369729560,1751716259175,-460.0,0.00019452,2]
[369729561,1751716259185,-460.0,0.00019452,2]
[369729562,1751716259194,-2359.3,0.00019452,2]
[369729563,1751716259203,-5370.2,0.00019452,2]
[369729564,1751716259213,-460.0,0.00019452,2]
[369729565,1751716259222,-2290.79,0.00019452,2]
[369729566,1751716259232,-460.0,0.00019452,2]
[369729567,1751716259241,-460.0,0.00019452,2]
[369729568,1751716259250,-460.0,0.00019452,2]
[369729569,1751716259259,-795.87,0.00019452,2]
[369729570,1751716259269,-460.0,0.00019452,2]
[369729571,1751716259279,-460.0,0.00019452,2]
[369729572,1751716259288,-460.0,0.00019452,2]
[369729573,1751716259297,-460.0,0.00019452,2]
[369729574,1751716259307,-460.0,0.00019452,2]
[369729575,1751716259316,-460.46105792,0.00019452,2]
[369729576,1751716259325,-460.0,0.00019452,2]
[369729577,1751716259334,-460.0,0.00019452,2]
[369729578,1751716259344,-460.0,0.00019452,2]
[369729579,1751716259353,-460.0,0.00019452,2]
[369729580,1751716259363,-460.0,0.00019452,2]
[369729581,1751716259372,-460.0,0.00019452,2]
[369729582,1751716259381,-460.0,0.00019452,2]
[369729583,1751716259391,-460.0,0.00019452,2]
[369729584,1751716259401,-460.0,0.00019452,2]
[369729585,1751716259411,-460.0,0.00019452,2]
[369729586,1751716259420,-460.0,0.00019452,2]
[369729587,1751716259430,-460.0,0.00019452,2]
[369729588,1751716259439,-460.0,0.00019452,2]
[369729589,1751716259448,-460.0,0.00019452,2]
[369729590,1751716259458,-1590.72,0.00019452,2]
[369729591,1751716259467,-460.0,0.00019452,2]
[369729592,1751716259476,-460.0,0.00019452,2]
[369729593,1751716259486,-460.0,0.00019452,2]
[369729594,1751716259495,-460.0,0.00019452,2]
[369729595,1751716259505,-460.0,0.00019452,2]
[369729596,1751716259514,-460.0,0.00019452,2]
[369729597,1751716259524,-460.0,0.00019452,2]
[369729598,1751716259533,-460.0,0.00019452,2]
[369729599,1751716259543,-2510.14,0.00019452,2]
[369729600,1751716259552,-460.0,0.00019452,2]
[369729601,1751716259563,-460.0,0.00019452,2]
[369729602,1751716259572,-1367.67,0.00019452,2]
[369729603,1751716259582,-460.0,0.00019452,2]
[369729604,1751716259592,-460.0,0.00019452,2]
[369729605,1751716259602,-966.45,0.00019452,2]
[369729606,1751716259611,-460.0,0.00019452,2]
[369729607,1751716259620,-460.0,0.00019452,2]
[369729608,1751716259630,-460.0,0.00019452,2]
[369729609,1751716259639,-460.0,0.00019452,2]
[369729610,1751716259648,-460.0,0.00019452,2]
[369729611,1751716259657,-214.00689675,0.00019463,2]
[369729612,1751716259667,-160.0,0.00019463,2]
[369729613,1751716259677,-160.0,0.00019463,2]
[369729614,1751716259686,-160.0,0.00019463,2]
[369729615,1751716259698,-160.0,0.00019463,2]
[369729616,1751716259707,-12580.16877015,0.00019463,2]
[369729617,1751716259716,-160.0,0.00019463,2]
[369729618,1751716259726,-230.42616721,0.00019463,2]
[369729619,1751716259735,-837.5764301,0.00019463,2]
[369729620,1751716259745,-215.14521394,0.00019463,2]
[369729621,1751716259754,-848.02350475,0.00019463,2]
[369729622,1751716259763,-500.0,0.00019473,2]
[369729623,1751716259773,-500.0,0.00019473,2]
[369729624,1751716259783,-261.710663,0.00019473,2]
[369729625,1751716259792,-261.710663,0.00019473,2]
[369729626,1751716259801,-151.0,0.00019473,2]
[369729627,1751716259811,-171.19427,0.00019479,2]
[369729628,1751716259820,-171.19427,0.00019479,2]
[369729629,1751716259829,-151.0,0.00019479,2]
[369729630,1751716259838,-151.433164,0.00019479,2]
[369729631,1751716259847,-151.433164,0.00019479,2]
[369729632,1751716259856,-302.318759,0.00019479,2]
[369729633,1751716259865,-302.318759,0.00019479,2]
[369729634,1751716259875,-1236.0,0.00019479,2]
[369729635,1751716259884,-500.0,0.00019479,2]
[369729636,1751716259894,-1201.0,0.00019479,2]
[369729637,1751716259903,-388.43900993,0.00019479,2]
[369729638,1751716259913,-384.0,0.00019499,2]
[369729639,1751716259922,-151.0,0.000195,2]
[369729640,1751716259931,-151.0,0.000195,2]
[369729641,1751716259941,-1236.0,0.00019507,2]
[369729642,1751716259951,-618.0,0.00019507,2]
[369729643,1751716259960,-1201.0,0.00019507,2]
[369729644,1751716259969,-158.785276,0.00019534,2]
[369729645,1751716259979,-158.785273,0.00019534,2]
[369729646,1751716259988,-1236.0,0.00019534,2]
[369729647,1751716259998,-1201.0,0.00019534,2]
[369729648,1751716260007,-500.0,0.00019548,2]
[369729649,1751716260016,-1236.0,0.00019562,2]
[369729650,1751716260026,-1201.0,0.00019562,2]
[369729651,1751716260036,-151.0,0.00019562,2]
[369729652,1751716260046,-1236.0,0.00019589,2]
[369729653,1751716260055,-1201.0,0.00019589,2]
[369729654,1751716260065,-153.539638,0.00019599,2]
[369729655,1751716260075,-438.86253,0.00019599,2]
[369729656,1751716260085,-438.86253,0.00019599,2]
[369729657,1751716260095,-187.024039,0.00019599,2]
[369729658,1751716260104,-187.024039,0.00019599,2]
[369729659,1751716260114,-151.0,0.00019599,2]
[369729660,1751716260125,-151.0,0.00019599,2]
[369729661,1751716260135,-1149.6623008,0.000196,2]
[369729662,1751716260145,-241.8218938,0.000196,2]
[369729663,1751716260155,-151.0,0.000196,2]
[369729664,1751716260165,-318.3238461,0.000196,2]
[369729665,1751716260175,-863.0626882,0.000196,2]
[369729666,1751716260185,-1236.0,0.00019616,2]
[369729667,1751716260195,-1201.0,0.00019616,2]
[369729668,1751716260205,-200.0,0.0001962,2]
[369729669,1751716260214,-8173.7488821,0.00019626,2]
[369729670,1751716260224,-1236.0,0.00019644,2]
[369729671,1751716260233,-1201.0,0.00019644,2]
[369729672,1751716260243,-374.0,0.00019653,2]
[369729673,1751716260253,-420.0,0.00019653,2]
[369729674,1751716260262,-1236.0,0.00019671,2]
[369729675,1751716260273,-1201.0,0.00019671,2]
[369729676,1751716260282,-153.0,0.00019671,2]
[369729677,1751716260292,-1236.0,0.00019699,2]
[369729678,1751716260302,-1201.0,0.00019699,2]
[369729679,1751716260311,-152.751388,0.00019699,2]
[369729680,1751716260322,-151.0,0.00019699,2]
[369729681,1751716260331,-151.0,0.000197,2]
[369729682,1751716260342,-151.0,0.000197,2]
[369729683,1751716260352,-1000.0,0.00019721,2]
[369729684,1751716260361,-1000.0,0.00019721,2]
[369729685,1751716260371,-1000.0,0.00019721,2]
[369729686,1751716260381,-1000.0,0.00019721,2]
[369729687,1751716260390,-1000.0,0.00019721,2]
[369729688,1751716260399,-1000.0,0.00019721,2]
[369729689,1751716260409,-501.0949268,0.00019721,2]
[369729690,1751716260419,-501.85873323,0.00019721,2]
[369729691,1751716260429,-151.0,0.00019721,2]
[369729692,1751716260439,-1748.0,0.00019724,2]
[369729693,1751716260448,-1748.0,0.00019724,2]
[369729694,1751716260457,-1748.0,0.00019724,2]
[369729695,1751716260467,-1748.0,0.00019724,2]
[369729696,1751716260476,-1748.0,0.00019724,2]
[369729697,1751716260486,-1748.0,0.00019724,2]
[369729698,1751716260495,-1748.0,0.00019724,2]
[369729699,1751716260505,-1748.0,0.00019724,2]
[369729700,1751716260514,-1748.0,0.00019724,2]
[369729701,1751716260523,-989.64214159,0.00019724,2]
[369729702,1751716260533,-245.61496019,0.00019725,2]
[369729703,1751716260543,-200.0,0.00019725,2]
[369729704,1751716260552,-1236.0,0.00019726,2]
[369729705,1751716260562,-1201.0,0.00019726,2]
[369729706,1751716260571,-151.0,0.00019726,2]
[369729707,1751716260581,-151.0,0.00019726,2]
[369729708,1751716260590,-151.0,0.00019726,2]
[369729709,1751716260600,-151.0,0.00019726,2]
[369729710,1751716260609,-151.0,0.00019726,2]
[369729711,1751716260620,-151.0,0.00019726,2]
[369729712,1751716260629,-151.0,0.00019726,2]
[369729713,1751716260639,-460.0,0.00019726,2]
[369729714,1751716260648,-460.0,0.00019726,2]
[369729715,1751716260657,-460.0,0.00019726,2]
[369729716,1751716260666,-460.0,0.00019726,2]
[369729717,1751716260676,-460.0,0.00019726,2]
[369729718,1751716260685,-171.19427,0.00019726,2]
[369729719,1751716260695,-171.19427,0.00019726,2]
[369729720,1751716260704,-171.19427,0.00019726,2]
[369729721,1751716260714,-171.19427,0.00019726,2]
[369729722,1751716260724,-460.0,0.00019726,2]
[369729723,1751716260734,-438.86253,0.00019726,2]
[369729724,1751716260744,-438.86253,0.00019726,2]
[369729725,1751716260753,-438.86253,0.00019726,2]
[369729726,1751716260762,-438.86253,0.00019726,2]
[369729727,1751716260772,-151.0,0.00019726,2]
[369729728,1751716260781,-151.0,0.00019726,2]
[369729729,1751716260790,-460.0,0.00019726,2]
[369729730,1751716260799,-151.0,0.00019726,2]
[369729731,1751716260809,-286.86235,0.00019726,2]
[369729732,1751716260819,-151.0,0.00019726,2]
[369729733,1751716260829,-151.0,0.00019726,2]
[369729734,1751716260839,-460.0,0.00019726,2]
[369729735,1751716260848,-460.0,0.00019726,2]
[369729736,1751716260859,-460.0,0.00019726,2]
[369729737,1751716260868,-460.0,0.00019726,2]
[369729738,1751716260878,-460.0,0.00019726,2]
[369729739,1751716260889,-460.0,0.00019726,2]
[369729740,1751716260898,-460.0,0.00019726,2]
[369729741,1751716260908,-261.710663,0.00019726,2]
[369729742,1751716260917,-261.710663,0.00019726,2]
[369729743,1751716260927,-261.710663,0.00019726,2]
[369729744,1751716260936,-261.710654,0.00019726,2]
[369729745,1751716260946,-460.0,0.00019726,2]
[369729746,1751716260956,-151.0,0.00019726,2]
[369729747,1751716260966,-151.0,0.00019726,2]
[369729748,1751716260976,-460.0,0.00019726,2]
[369729749,1751716260986,-560.39296965,0.00019726,2]
[369729750,1751716260996,-460.0,0.00019726,2]
[369729751,1751716261007,-460.0,0.00019726,2]
[369729752,1751716261017,-480.78582174,0.00019726,2]
[369729753,1751716261139,-190.35274342,0.00019726,2]
[369729754,1751716261148,-254.60910511,0.00019726,2]
[369729755,1751716261159,-151.0,0.00019726,2]
[369729756,1751716261169,-151.0,0.00019726,2]
[369729757,1751716261178,-446.31775844,0.00019726,2]
[369729758,1751716261187,-460.0,0.00019726,2]
[369729759,1751716261197,-151.433164,0.00019726,2]
[369729760,1751716261206,-151.433164,0.00019726,2]
[369729761,1751716261215,-460.0,0.00019726,2]
[369729762,1751716261225,-151.433164,0.00019726,2]
[369729763,1751716261234,-151.433171,0.00019726,2]
[369729764,1751716261243,-577.1439615,0.00019726,2]
[369729765,1751716261253,-460.0,0.00019726,2]
[369729766,1751716261262,-460.0,0.00019726,2]
[369729767,1751716261273,-187.024039,0.00019726,2]
[369729768,1751716261282,-187.024039,0.00019726,2]
[369729769,1751716261292,-460.0,0.00019726,2]
[369729770,1751716261301,-187.024039,0.00019726,2]
[369729771,1751716261310,-187.024039,0.00019726,2]
[369729772,1751716261320,-460.0,0.00019726,2]
[369729773,1751716261330,-460.0,0.00019726,2]
[369729774,1751716261340,-460.0,0.00019726,2]
[369729775,1751716261350,-460.0,0.00019726,2]
[369729776,1751716261360,-460.0,0.00019726,2]
[369729777,1751716261370,-460.0,0.00019726,2]
[369729778,1751716261379,-460.0,0.00019726,2]
[369729779,1751716261389,-460.0,0.00019726,2]
[369729780,1751716261398,-460.0,0.00019726,2]